bitfinex/quotes_BTCUSD_20240717
["timestamp","ask_amount","ask_price","bid_price","bid_amount"]
[1721219506648,0.153939,64961.0,64959.0,0.001]
[1721219506987,0.153939,64961.0,64957.0,0.153947]
[1721219507404,0.307873,64962.0,64957.0,0.153947]
[1721219507405,0.15673,64962.0,64958.0,0.153945]
[1721219507689,0.153936,64962.0,64958.0,0.153945]
[1721219507891,0.153936,64962.0,64959.0,0.002]
[1721219509272,0.001,64962.0,64959.0,0.002]
[1721219509472,0.154937,64962.0,64957.0,0.153947]
[1721219509690,0.001,64962.0,64958.0,0.153945]
[1721219510339,0.001,64962.0,64959.0,0.155943]
[1721219510651,0.154936,64962.0,64957.0,0.153947]
[1721219510852,0.153936,64962.0,64957.0,0.153947]
[1721219511099,0.154936,64962.0,64958.0,0.002]
[1721219511320,0.154936,64962.0,64957.0,0.153947]
[1721219511738,0.154936,64962.0,64955.0,0.153952]
[1721219511739,0.153941,64960.0,64955.0,0.153952]
[1721219511912,0.001,64962.0,64952.0,0.065]
[1721219512131,0.46224774,64964.0,64958.0,0.061663]
[1721219512132,0.461829,64959.0,64958.0,0.061663]
[1721219512335,1.36998274,64959.0,64958.0,0.061663]
[1721219512507,0.153983,64942.0,64941.0,0.4699]
[1721219512710,0.153981,64943.0,64938.0,0.153992]
[1721219512876,0.153984,64942.0,64938.0,0.153992]
[1721219513079,0.153984,64942.0,64941.0,0.061678]
[1721219513280,0.445958,64944.0,64941.0,0.061678]
[1721219513581,0.153981,64943.0,64941.0,0.061678]
[1721219513842,0.001,64942.0,64941.0,0.063678]
[1721219514251,0.153974,64946.0,64941.0,0.215662]
[1721219514638,0.153974,64946.0,64941.0,0.216662]
[1721219514837,0.153974,64946.0,64941.0,0.215662]
[1721219515219,0.307838,64946.0,64941.0,0.062678]
[1721219515433,0.21878174,64948.0,64941.0,0.062678]
[1721219515434,0.46195,64942.0,64941.0,0.062678]
[1721219516088,0.69583174,64942.0,64941.0,0.062678]
[1721219516333,1.00379874,64942.0,64941.0,0.001]
[1721219516533,0.461985,64937.0,64936.0,0.000924]
[1721219517575,0.461985,64937.0,64936.0,0.062608]
[1721219518413,0.462985,64937.0,64936.0,0.064608]
[1721219518605,0.461985,64937.0,64936.0,0.062608]
[1721219518824,0.462985,64937.0,64936.0,0.064608]
[1721219519026,0.462985,64937.0,64936.0,0.066608]
[1721219520037,0.99195674,64937.0,64936.0,0.004924]
[1721219520232,0.99195674,64937.0,64936.0,0.002924]
[1721219520233,1.29894674,64937.0,64936.0,0.002924]
[1721219520655,1.37914674,64937.0,64936.0,0.002924]
[1721219520862,1.07115674,64937.0,64936.0,0.002924]
[1721219521063,1.37914674,64937.0,64936.0,0.002924]
[1721219521309,0.153992,64939.0,64936.0,0.002924]
[1721219521483,0.307977,64940.0,64936.0,0.002924]
[1721219521667,0.153995,64937.0,64936.0,0.002924]
[1721219522300,0.154995,64937.0,64936.0,0.000924]
[1721219522444,0.001,64937.0,64936.0,0.000924]
[1721219522856,0.462985,64937.0,64936.0,0.000924]
[1721219523054,1.23334674,64937.0,64936.0,0.000924]
[1721219523522,0.770975,64937.0,64936.0,0.000924]
[1721219525241,0.770975,64937.0,64936.0,0.002924]
[1721219528118,0.154995,64937.0,64936.0,0.002924]
[1721219528297,0.462985,64937.0,64936.0,0.002924]
[1721219528880,0.154995,64937.0,64936.0,0.002924]
[1721219529292,0.462985,64937.0,64936.0,0.002924]
[1721219529498,0.001,64937.0,64936.0,0.464916]
[1721219529831,0.001,64937.0,64936.0,0.156921]
[1721219533174,0.001,64937.0,64936.0,0.464916]
[1721219534747,0.001,64937.0,64936.0,0.002924]
[1721219534926,0.296595,64937.0,64936.0,0.002924]
[1721219535128,0.001,64937.0,64936.0,0.002924]
[1721219535771,0.154995,64937.0,64936.0,0.002924]
[1721219536422,0.001,64937.0,64936.0,0.002924]
[1721219539069,0.001,64937.0,64936.0,0.156921]
[1721219540608,0.001,64937.0,64936.0,0.28480114]
[1721219541994,0.001,64937.0,64936.0,0.90387088]
[1721219542189,0.001,64937.0,64936.0,0.96767088]
[1721219542521,0.001,64937.0,64936.0,0.96459114]
[1721219543003,0.001,64937.0,64936.0,0.96459151]
[1721219544083,0.001,64937.0,64936.0,0.96459229]
[1721219544494,0.078,64937.0,64936.0,0.28480229]
[1721219544848,0.606485,64937.0,64936.0,0.13080529]
[1721219545077,0.298495,64937.0,64936.0,0.002924]
[1721219545543,0.606485,64937.0,64936.0,0.002924]
[1721219545740,1.06885674,64937.0,64936.0,0.002924]
[1721219545943,1.37684674,64937.0,64936.0,0.002924]
[1721219546538,1.68483674,64937.0,64936.0,0.002924]
[1721219546739,1.70893143,64937.0,64936.0,0.002924]
[1721219547129,1.81852469,64937.0,64936.0,0.002924]
[1721219547725,1.81852469,64937.0,64936.0,0.000924]
[1721219547930,2.12651469,64937.0,64936.0,0.000924]
[1721219548075,2.15551469,64937.0,64936.0,0.000924]
[1721219548469,1.84752469,64937.0,64936.0,0.000924]
[1721219548751,1.89354894,64937.0,64936.0,0.000924]
[1721219548906,1.84652583,64937.0,64936.0,0.000924]
[1721219549105,1.91556088,64937.0,64936.0,0.000924]
[1721219549333,1.92456088,64937.0,64936.0,0.000924]
[1721219549517,1.9015402,64937.0,64936.0,0.000924]
[1721219549737,1.84652583,64937.0,64936.0,0.000924]
[1721219549879,1.85552583,64937.0,64936.0,0.000924]
[1721219550733,1.9125402,64937.0,64936.0,0.000924]
[1721219551336,1.226682,64924.0,64913.0,0.46304871]
[1721219551559,1.50515843,64924.0,64913.0,0.46304871]
[1721219552093,1.81321043,64924.0,64909.0,0.000913]
[1721219552311,1.81321043,64924.0,64910.0,0.06171]
[1721219553454,1.82721043,64924.0,64910.0,0.06171]
[1721219553722,1.82721043,64924.0,64909.0,0.000913]
[1721219553723,1.87721043,64924.0,64909.0,0.000913]
[1721219553925,2.00456,64924.0,64909.0,0.000913]
[1721219554797,2.01856,64924.0,64909.0,0.000913]
[1721219555461,2.00456,64924.0,64909.0,0.000913]
[1721219555935,1.84121043,64924.0,64909.0,0.000913]
[1721219556190,1.50906374,64924.0,64915.0,0.07717479]
[1721219556439,1.48106374,64924.0,64915.0,0.07717479]
[1721219556677,1.50906374,64924.0,64915.0,0.07717479]
[1721219556898,1.49506374,64924.0,64915.0,0.07717479]
[1721219557799,1.48106374,64924.0,64915.0,0.07717479]
[1721219558903,1.50906374,64924.0,64923.0,0.03]
[1721219559181,1.49506374,64924.0,64923.0,0.03]
[1721219559905,1.50906374,64924.0,64923.0,0.03]
[1721219560350,1.49506374,64924.0,64923.0,0.03]
[1721219560812,1.50906374,64924.0,64923.0,0.03]
[1721219565259,1.81711574,64924.0,64923.0,0.03]
[1721219571768,1.50906374,64924.0,64923.0,0.03]
[1721219572366,1.81711574,64924.0,64923.0,0.03]
[1721219576521,1.82671147,64924.0,64923.0,0.03]
[1721219577670,1.8508134,64924.0,64923.0,0.03]
[1721219578095,1.84121767,64924.0,64923.0,0.03]
[1721219578274,1.8508134,64924.0,64923.0,0.03]
[1721219579694,1.84121767,64924.0,64923.0,0.03]
[1721219579904,1.8508134,64924.0,64923.0,0.03]
[1721219580934,1.84121767,64924.0,64923.0,0.03]
[1721219581126,1.8508134,64924.0,64923.0,0.03]
[1721219582643,1.5427614,64924.0,64923.0,0.03]
[1721219583097,0.51453567,64924.0,64923.0,0.0871]
[1721219583323,0.80476167,64924.0,64923.0,0.03]
[1721219583574,1.42086567,64924.0,64923.0,0.03]
[1721219584285,0.66856167,64924.0,64923.0,0.093]
[1721219584542,0.96261367,64924.0,64923.0,0.03]
[1721219584787,0.97661367,64924.0,64923.0,0.03]
[1721219585267,0.96261367,64924.0,64923.0,0.03]
[1721219585778,0.008,64924.0,64923.0,1.04726056]
[1721219586019,0.008,64924.0,64923.0,0.43114656]
[1721219586185,0.022,64924.0,64923.0,0.73920356]
[1721219586484,0.008,64924.0,64923.0,0.73920356]
[1721219586710,0.008,64924.0,64923.0,0.27711856]
[1721219586956,0.013,64924.0,64923.0,0.27711856]
[1721219587213,0.013,64924.0,64923.0,0.43114656]
[1721219587443,0.008,64924.0,64923.0,0.0921]
[1721219587657,0.008,64924.0,64923.0,0.031]
[1721219587658,0.77813,64924.0,64923.0,0.031]
[1721219588387,0.89422902,64924.0,64923.0,0.031]
[1721219588586,0.87013,64924.0,64923.0,0.031]
[1721219588715,0.90222884,64924.0,64923.0,0.031]
[1721219588925,0.90222884,64924.0,64923.0,0.03]
[1721219588926,1.36466258,64924.0,64923.0,0.03]
[1721219589121,1.80521458,64924.0,64923.0,0.03]
[1721219589330,1.80521458,64924.0,64923.0,0.031]
[1721219589704,1.81321458,64924.0,64923.0,0.031]
[1721219590288,1.81321458,64924.0,64923.0,0.03]
[1721219590509,1.86426722,64924.0,64923.0,0.03]
[1721219591416,1.88729354,64924.0,64923.0,0.03]
[1721219592511,1.91031986,64924.0,64923.0,0.03]
[1721219593420,1.60226786,64924.0,64923.0,0.03]
[1721219593655,1.06161058,64924.0,64923.0,0.03]
[1721219593900,0.84592913,64924.0,64923.0,0.03]
[1721219594130,0.19148058,64924.0,64923.0,0.03]
[1721219594396,0.19148058,64924.0,64923.0,0.492085]
[1721219594397,0.013,64924.0,64923.0,0.492085]
[1721219594639,0.013,64924.0,64923.0,0.184028]
[1721219595340,0.167026,64924.0,64923.0,0.03]
[1721219597020,0.167026,64924.0,64923.0,0.091699]
[1721219602132,0.167026,64924.0,64923.0,0.03]
[1721219604600,0.78313,64924.0,64923.0,0.03]
[1721219606612,0.99851174,64924.0,64923.0,0.03]
[1721219607044,1.3306632,64924.0,64923.0,0.03]
[1721219607244,1.4100632,64924.0,64923.0,0.03]
[1721219609003,1.14816927,64924.0,64923.0,0.03]
[1721219609739,1.45622127,64924.0,64923.0,0.03]
[1721219612462,1.08716927,64924.0,64923.0,0.03]
[1721219612893,1.3490632,64924.0,64923.0,0.03]
[1721219614543,1.39522486,64924.0,64923.0,0.03]
[1721219614845,1.39522486,64924.0,64923.0,0.030924]
[1721219615049,1.3490632,64924.0,64923.0,0.030924]
[1721219616120,1.4130632,64924.0,64923.0,0.030924]
[1721219616545,1.0410112,64924.0,64923.0,0.030924]
[1721219616954,1.08717501,64924.0,64923.0,0.030924]
[1721219617120,1.39522701,64924.0,64923.0,0.030924]
[1721219617319,1.08717501,64924.0,64923.0,0.030924]
[1721219617896,1.0410112,64924.0,64923.0,0.030924]
[1721219618028,1.3490632,64924.0,64923.0,0.030924]
[1721219618429,1.0410112,64924.0,64923.0,0.030924]
[1721219619532,1.08717955,64924.0,64923.0,0.030924]
[1721219619756,1.0410112,64924.0,64923.0,0.030924]
[1721219619991,1.01691174,64924.0,64923.0,0.030924]
[1721219620162,1.34906271,64924.0,64923.0,0.030924]
[1721219620570,1.08717906,64924.0,64923.0,0.030924]
[1721219621384,1.39523106,64924.0,64923.0,0.030924]
[1721219621586,1.08717906,64924.0,64923.0,0.030924]
[1721219621788,1.04101071,64924.0,64923.0,0.030924]
[1721219622288,0.65355871,64924.0,64923.0,0.030924]
[1721219622736,0.96161071,64924.0,64923.0,0.030924]
[1721219624925,0.93751174,64924.0,64923.0,0.030924]
[1721219625326,0.96161034,64924.0,64923.0,0.030924]
[1721219627132,0.93751174,64924.0,64923.0,0.030924]
[1721219627433,0.62945974,64924.0,64923.0,0.030924]
[1721219628887,0.167026,64924.0,64923.0,0.030924]
[1721219630160,0.013,64924.0,64923.0,0.184952]
[1721219630331,0.013,64924.0,64923.0,1.32240323]
[1721219630528,0.013,64924.0,64923.0,1.45031762]
[1721219630733,0.013,64924.0,64923.0,2.06474564]
[1721219630935,0.013,64924.0,64923.0,2.34168358]
[1721219631170,0.013,64924.0,64923.0,2.41076381]
[1721219631382,0.002794,64942.0,64939.0,0.0637]
[1721219631596,0.00084,64946.0,64944.0,0.461935]
[1721219631597,0.002794,64945.0,64944.0,0.461935]
[1721219631800,0.00084,64946.0,64945.0,0.461928]
[1721219631997,0.00084,64946.0,64945.0,0.76988]
[1721219632171,0.00084,64946.0,64945.0,1.20569376]
[1721219632360,0.00084,64946.0,64945.0,1.32649275]
[1721219633259,0.00084,64946.0,64945.0,0.582728]
[1721219633488,0.00084,64946.0,64939.0,0.307979]
[1721219633489,0.00084,64946.0,64940.0,0.0571]
[1721219633688,0.00084,64946.0,64943.0,0.15398]
[1721219633937,0.153979,64944.0,64941.0,0.063]
[1721219634062,0.153979,64944.0,64939.0,0.153989]
[1721219634274,0.153979,64944.0,64934.0,0.063]
[1721219634275,0.153979,64944.0,64940.0,0.153988]
[1721219634454,0.014,64942.0,64940.0,0.153988]
[1721219634653,0.014,64942.0,64941.0,0.153985]
[1721219635114,0.15438174,64945.0,64942.0,0.153981]
[1721219635295,0.001,64944.0,64942.0,0.153981]
[1721219635710,0.001,64944.0,64943.0,0.153981]
[1721219635934,0.00084,64946.0,64943.0,0.153981]
[1721219636391,0.001,64945.0,64943.0,0.153981]
[1721219636710,0.00084,64946.0,64944.0,0.153978]
[1721219637209,0.00084,64946.0,64945.0,0.461928]
[1721219637853,0.00084,64946.0,64945.0,0.76988]
[1721219638156,0.00084,64946.0,64945.0,0.83638]
[1721219638879,0.00084,64946.0,64945.0,0.83938]
[1721219639797,0.00184,64946.0,64945.0,0.84138]
[1721219640930,0.00184,64946.0,64945.0,1.59195174]
[1721219641141,0.00184,64946.0,64945.0,2.13484922]
[1721219641341,0.00184,64946.0,64945.0,2.15784922]
[1721219641510,0.00184,64946.0,64945.0,2.25784922]
[1721219641723,0.00184,64946.0,64945.0,1.94989722]
[1721219642341,0.00184,64946.0,64945.0,1.94689722]
[1721219642542,0.00084,64946.0,64945.0,1.94489722]
[1721219642755,0.00184,64946.0,64945.0,1.94889722]
[1721219642957,0.00284,64946.0,64945.0,1.95089722]
[1721219643160,0.00284,64946.0,64945.0,1.90089722]
[1721219643337,0.00284,64946.0,64945.0,1.95089722]
[1721219644064,0.00184,64946.0,64945.0,1.76905174]
[1721219644290,0.00184,64946.0,64945.0,1.94688357]
[1721219644509,0.00184,64946.0,64945.0,1.90288357]
[1721219644510,0.00284,64946.0,64945.0,1.90288357]
[1721219644884,0.00284,64946.0,64945.0,2.26083557]
[1721219645089,0.00083,64969.0,64967.0,0.153923]
[1721219645308,0.00083,64969.0,64965.0,0.066]
[1721219645309,0.00083,64969.0,64968.0,0.15699914]
[1721219645646,0.00083,64969.0,64968.0,0.46484214]
[1721219646775,0.00083,64969.0,64968.0,0.77268514]
[1721219646983,0.00883,64969.0,64968.0,0.77368514]
[1721219647677,0.01883,64969.0,64968.0,1.07945]
[1721219650750,0.01883,64969.0,64968.0,1.12945]
[1721219651733,0.00883,64969.0,64968.0,1.12845]
[1721219652602,0.00083,64969.0,64968.0,1.12745]
[1721219653003,0.00183,64969.0,64968.0,1.25524988]
[1721219653334,0.00183,64969.0,64968.0,1.12745]
[1721219653487,0.00183,64969.0,64968.0,1.25525084]
[1721219653687,0.00183,64969.0,64968.0,1.12745]
[1721219653902,0.00183,64969.0,64968.0,1.25524981]
[1721219654048,0.00183,64969.0,64968.0,1.12745]
[1721219654556,0.00183,64969.0,64968.0,1.07745]
[1721219654700,0.00183,64969.0,64960.0,0.153938]
[1721219654701,0.307845,64968.0,64960.0,0.153938]
[1721219654907,0.307845,64968.0,64961.0,0.307876]
[1721219654908,0.153922,64968.0,64961.0,0.307876]
[1721219655106,0.00683682,64967.0,64963.0,0.153933]
[1721219655286,0.153928,64966.0,64961.0,0.153937]
[1721219655491,0.00683074,64966.0,64963.0,0.153933]
[1721219655697,0.153923,64968.0,64963.0,0.153933]
[1721219655894,0.00682465,64965.0,64963.0,0.153933]
[1721219656257,0.153923,64968.0,64960.0,0.307878]
[1721219656258,0.153923,64968.0,64964.0,0.153929]
[1721219656377,0.153923,64968.0,64960.0,0.003]
[1721219656378,0.00681856,64964.0,64963.0,0.5261]
[1721219656578,0.00681856,64964.0,64963.0,0.6539176]
[1721219656788,0.00083,64969.0,64968.0,0.461764]
[1721219656977,0.00083,64969.0,64968.0,0.769607]
[1721219657206,0.00083,64969.0,64968.0,0.89741569]
[1721219657403,0.00083,64969.0,64968.0,0.89741639]
[1721219658210,0.00083,64969.0,64968.0,1.25525939]
[1721219658848,0.00083,64969.0,64968.0,1.2552497]
[1721219659109,0.00183,64969.0,64968.0,1.1872497]
[1721219659460,0.00083,64969.0,64968.0,1.1802497]
[1721219659692,0.00083,64969.0,64968.0,1.1892497]
[1721219659845,0.00083,64969.0,64968.0,1.1912497]
[1721219659846,0.00183,64969.0,64968.0,1.1912497]
[1721219660247,0.00084,64978.0,64968.0,1.1912497]
[1721219660248,0.00084,64978.0,64977.0,0.1539]
[1721219660446,0.00084,64978.0,64977.0,0.28170233]
[1721219660659,0.00763824,64978.0,64977.0,0.28170233]
[1721219660829,0.00084,64978.0,64977.0,0.28170233]
[1721219661063,0.00763824,64978.0,64977.0,0.28170233]
[1721219661268,0.00084,64978.0,64977.0,0.34334433]
[1721219661475,0.00763824,64978.0,64977.0,0.34334433]
[1721219661682,0.00084,64978.0,64977.0,0.34334433]
[1721219661882,0.00763824,64978.0,64977.0,0.34334433]
[1721219662014,0.00084,64978.0,64977.0,0.34334433]
[1721219662218,0.00084,64978.0,64977.0,0.95894633]
[1721219662219,0.00764585,64978.0,64977.0,0.95894633]
[1721219662446,0.00184,64978.0,64977.0,0.95894633]
[1721219663188,0.00184,64978.0,64977.0,1.01194633]
[1721219664110,0.00184,64978.0,64977.0,1.00894633]
[1721219664319,0.00284,64978.0,64977.0,1.01994633]
[1721219664513,0.00184,64978.0,64977.0,0.96994633]
[1721219664720,0.00084,64978.0,64977.0,0.95894633]
[1721219664920,0.00184,64978.0,64977.0,0.96794633]
[1721219665363,0.00184,64978.0,64977.0,1.27574733]
[1721219666178,0.00184,64978.0,64977.0,1.32574733]
[1721219666385,0.00284,64978.0,64977.0,1.45634733]
[1721219666663,0.00284,64978.0,64977.0,1.79072774]
[1721219666849,0.00083,64982.0,64981.0,0.819455]
[1721219667081,0.00083,64982.0,64981.0,1.70109016]
[1721219667285,0.00083,64982.0,64981.0,2.00887216]
[1721219668806,0.00083,64982.0,64981.0,2.13757216]
[1721219668807,0.00183,64982.0,64981.0,2.13757216]
[1721219669020,0.00183,64982.0,64981.0,2.46835416]
[1721219669450,0.00835,64989.0,64982.0,1.434996]
[1721219669650,0.00335,64983.0,64982.0,2.09444916]
[1721219669992,0.00335,64983.0,64982.0,2.09436437]
[1721219671050,0.00335,64983.0,64982.0,2.10436437]
[1721219671261,0.00335,64983.0,64982.0,2.11136437]
[1721219671889,0.00335,64983.0,64982.0,2.16846437]
[1721219672271,0.00335,64983.0,64982.0,2.51473304]
[1721219672425,0.00335,64983.0,64982.0,2.48224137]
[1721219672625,0.00335,64983.0,64982.0,2.52773304]
[1721219673046,0.00835,64989.0,64988.0,1.83487]
[1721219673047,0.0067,64989.0,64988.0,1.83487]
[1721219673260,0.0067,64989.0,64988.0,2.55133494]
[1721219674158,0.0067,64989.0,64988.0,2.52833494]
[1721219674376,0.0067,64989.0,64988.0,1.85088594]
[1721219674576,0.0067,64989.0,64988.0,1.0960062]
[1721219675062,0.0067,64989.0,64988.0,1.4037552]
[1721219675271,0.0067,64989.0,64988.0,0.14275328]
[1721219675272,0.1421,64989.0,64988.0,0.14275328]
[1721219675467,0.1421,64989.0,64988.0,0.60437628]
[1721219676098,0.0785,64989.0,64988.0,0.60437628]
[1721219676283,0.307702,64998.0,64989.0,0.307743]
[1721219676284,0.0765,64997.0,64989.0,0.307743]
[1721219676484,0.0765,64997.0,64992.0,0.307726]
[1721219676711,0.0765,64997.0,64994.0,0.153859]
[1721219676839,0.0765,64997.0,64992.0,0.01840906]
[1721219676840,0.0765,64997.0,64995.0,0.12775328]
[1721219677035,0.0765,64997.0,64996.0,0.12776632]
[1721219677036,0.538059,64997.0,64996.0,0.12776632]
[1721219677430,0.845765,64997.0,64996.0,0.12776632]
[1721219677874,0.538059,64997.0,64996.0,0.12776632]
[1721219678076,0.845765,64997.0,64996.0,0.12776632]
[1721219678278,0.911465,64997.0,64996.0,0.12776632]
[1721219679089,1.06584674,64997.0,64996.0,0.12776632]
[1721219679290,1.06584674,64997.0,64982.0,0.01840906]
[1721219679291,0.292286,64983.0,64982.0,0.01840906]
[1721219679431,0.292286,64983.0,64982.0,0.12778201]
[1721219680624,0.1384,64983.0,64982.0,0.12778201]
[1721219680826,0.1384,64983.0,64982.0,0.14178201]
[1721219681117,0.0768,64983.0,64982.0,0.29567001]
[1721219681355,0.0768,64983.0,64982.0,0.15478201]
[1721219682354,0.0768,64983.0,64982.0,0.61644701]
[1721219682594,0.307723,64994.0,64987.0,0.153874]
[1721219682812,0.153866,64992.0,64988.0,0.28165196]
[1721219682980,0.153867,64991.0,64989.0,0.1277727]
[1721219683183,0.0781,64989.0,64984.0,0.307765]
[1721219683384,0.0781,64989.0,64988.0,0.153874]
[1721219683551,0.0781,64989.0,64988.0,0.28165246]
[1721219684580,0.0781,64989.0,64988.0,0.59840146]
[1721219684978,0.153864,64993.0,64988.0,0.44452746]
[1721219685182,0.1447,64995.0,64990.0,0.307737]
[1721219685482,0.15386,64994.0,64991.0,0.12777846]
[1721219685679,0.1447,64995.0,64992.0,0.12777629]
[1721219686003,0.1447,64995.0,64993.0,0.12777629]
[1721219686203,0.1447,64995.0,64994.0,0.12777629]
[1721219686654,0.298557,64995.0,64994.0,0.12777629]
[1721219687692,0.298557,64995.0,64994.0,0.12977629]
[1721219688026,0.1447,64995.0,64994.0,0.12977629]
[1721219689330,0.0828,64995.0,64994.0,0.12977629]
[1721219689536,0.0828,64995.0,64994.0,0.28363629]
[1721219689794,0.0828,64995.0,64994.0,0.12977629]
[1721219690302,0.153853,64997.0,64994.0,0.12977629]
[1721219690533,0.07714,65000.0,64999.0,0.461545]
[1721219690716,0.07714,65000.0,64999.0,0.58932129]
[1721219692073,0.07714,65000.0,64999.0,0.59332129]
[1721219692446,0.07714,65000.0,64999.0,0.59732129]
[1721219693304,0.07714,65000.0,64999.0,0.90101829]
[1721219693305,4e-05,65000.0,64999.0,0.90101829]
[1721219693598,4e-05,65000.0,64999.0,0.60032129]
[1721219693799,4e-05,65000.0,64999.0,0.90801829]
[1721219694302,4e-05,65000.0,64999.0,0.60032129]
[1721219694647,4e-05,65000.0,64999.0,0.90801829]
[1721219695064,4e-05,65000.0,64999.0,0.60032129]
[1721219695508,4e-05,65000.0,64999.0,0.96511829]
[1721219695706,4e-05,65000.0,64999.0,1.94971781]
[1721219695908,4e-05,65000.0,64999.0,2.0497056]
[1721219696145,4e-05,65000.0,64999.0,2.03129953]
[1721219696444,4e-05,65000.0,64999.0,2.05429953]
[1721219696652,4e-05,65000.0,64999.0,2.36199653]
[1721219697020,4e-05,65000.0,64999.0,2.40079961]
[1721219697224,4e-05,65000.0,64999.0,2.55099653]
[1721219697425,0.0823,65021.0,65020.0,0.153798]
[1721219697790,0.153799,65020.0,65016.0,0.153806]
[1721219697990,0.153799,65020.0,65017.0,0.12771877]
[1721219698204,0.0761,65023.0,65018.0,0.12771839]
[1721219698402,0.0761,65023.0,65020.0,0.153798]
[1721219698652,0.0761,65023.0,65019.0,0.12771591]
[1721219698653,0.0761,65023.0,65021.0,0.153795]
[1721219699361,0.153787,65025.0,65022.0,0.52964871]
[1721219699539,0.3222799,65030.0,65022.0,0.52964871]
[1721219699540,0.0147299,65030.0,65029.0,0.768887]
[1721219699739,0.0147299,65030.0,65029.0,1.63222373]
[1721219699897,0.0147299,65030.0,65029.0,1.98117594]
[1721219700098,0.0147299,65030.0,65029.0,2.15429913]
[1721219700303,0.0147299,65030.0,65029.0,2.30429913]
[1721219700555,0.0147299,65030.0,65029.0,2.02374413]
[1721219700781,0.0147299,65030.0,65029.0,2.04674413]
[1721219700965,0.0147299,65030.0,65029.0,2.06068602]
[1721219701181,0.0147299,65030.0,65029.0,2.36824102]
[1721219701355,0.0147299,65030.0,65029.0,2.35424102]
[1721219701557,0.0147299,65030.0,65029.0,2.16274365]
[1721219701760,0.0147299,65030.0,65029.0,2.17674365]
[1721219701938,0.0147299,65030.0,65029.0,2.38202515]
[1721219702139,0.0147299,65030.0,65029.0,2.19052778]
[1721219703571,0.0147299,65030.0,65029.0,2.50245348]
[1721219703774,0.0147299,65030.0,65029.0,2.23415177]
[1721219703907,0.0147299,65030.0,65029.0,3.31134751]
[1721219704108,0.00835,65043.0,65042.0,1.633718]
[1721219704314,0.00835,65043.0,65042.0,2.03876465]
[1721219704515,0.00835,65043.0,65042.0,2.09916465]
[1721219705327,0.00835,65043.0,65042.0,2.14278864]
[1721219705535,0.00835,65043.0,65042.0,2.09916465]
[1721219705740,0.00835,65043.0,65042.0,2.15626465]
[1721219706616,0.00835,65043.0,65042.0,2.46372625]
[1721219706985,0.00835,65043.0,65042.0,2.21385724]
[1721219707180,0.00835,65043.0,65042.0,2.19985724]
[1721219707328,0.00835,65043.0,65042.0,2.21385724]
[1721219707739,0.00835,65043.0,65042.0,2.19985724]
[1721219707945,0.00835,65043.0,65042.0,1.72486424]
[1721219708215,0.00835,65043.0,65042.0,2.05273325]
[1721219708420,0.00835,65043.0,65042.0,2.06673325]
[1721219708965,0.00835,65043.0,65042.0,2.05273325]
[1721219709167,0.00835,65043.0,65042.0,2.06673325]
[1721219709897,0.00835,65043.0,65042.0,2.26673709]
[1721219710264,0.00835,65043.0,65042.0,1.68624409]
[1721219710469,0.00835,65043.0,65042.0,1.36475109]
[1721219710669,0.00835,65043.0,65042.0,1.67224409]
[1721219710888,0.00835,65043.0,65042.0,1.65825378]
[1721219711087,0.00835,65043.0,65042.0,1.67225378]
[1721219711500,0.00835,65043.0,65042.0,1.54460674]
[1721219711701,0.00835,65043.0,65042.0,1.53060674]
[1721219712127,0.00835,65043.0,65042.0,1.54460674]
[1721219712467,1e-08,65046.0,65045.0,0.768697]
[1721219712667,1e-08,65046.0,65045.0,1.4312019]
[1721219712868,1e-08,65046.0,65045.0,0.89634017]
[1721219713067,1e-08,65046.0,65045.0,0.768697]
[1721219713208,1e-08,65046.0,65045.0,0.461218]
[1721219713413,1e-08,65046.0,65045.0,0.768697]
[1721219713648,1e-08,65046.0,65045.0,0.461218]
[1721219713899,1e-08,65046.0,65045.0,0.768697]
[1721219714431,1e-08,65046.0,65045.0,1.35820207]
[1721219714865,1e-08,65046.0,65045.0,1.38120207]
[1721219715071,1e-08,65046.0,65045.0,1.43120207]
[1721219715231,1e-08,65046.0,65045.0,1.49276707]
[1721219715852,1e-08,65046.0,65045.0,1.52076707]
[1721219716041,0.00835,65048.0,65047.0,1.076141]
[1721219716159,0.00835,65048.0,65047.0,1.35815606]
[1721219716361,0.00835,65048.0,65047.0,1.40815766]
[1721219716609,0.00835,65048.0,65047.0,1.35815766]
[1721219719786,0.00835,65048.0,65047.0,1.2927788]
[1721219720140,0.00835,65048.0,65047.0,1.2787788]
[1721219720819,0.00835,65048.0,65047.0,1.2927788]
[1721219721019,0.00835,65048.0,65047.0,1.2787788]
[1721219721466,0.00835,65048.0,65047.0,1.2927788]
[1721219722022,0.00835,65048.0,65047.0,1.2787788]
[1721219722148,0.00835,65048.0,65047.0,1.2927788]
[1721219722352,0.00835,65048.0,65047.0,1.3067788]
[1721219722553,0.00835,65048.0,65047.0,1.29277943]
[1721219722763,0.00835,65048.0,65047.0,1.49716117]
[1721219722966,0.00835,65048.0,65047.0,2.03308631]
[1721219723348,0.00835,65048.0,65047.0,2.80308631]
[1721219723554,0.00835,65048.0,65047.0,2.78908631]
[1721219723982,0.00835,65048.0,65047.0,2.80308631]
[1721219724519,0.00835,65048.0,65047.0,2.03308631]
[1721219725207,0.00835,65048.0,65047.0,2.00508631]
[1721219725606,0.00835,65048.0,65047.0,2.01905517]
[1721219725864,0.00835,65048.0,65047.0,2.03305517]
[1721219726096,0.08464,65054.0,65053.0,1.276043]
[1721219726298,0.08464,65054.0,65053.0,1.74948817]
[1721219727025,0.08464,65054.0,65053.0,1.28766543]
[1721219727467,1e-08,65057.0,65054.0,0.307435]
[1721219727674,1e-08,65057.0,65056.0,0.153713]
[1721219727850,1e-08,65057.0,65056.0,0.47277643]
[1721219728463,0.00835,65062.0,65061.0,0.153701]
[1721219728590,0.00835,65062.0,65061.0,0.78016743]
[1721219728791,0.00835,65062.0,65061.0,0.78013738]
[1721219729221,0.00835,65062.0,65061.0,1.08754038]